[Event "FIDE WSTC Open 50 2025"]
[Site "Prague"]
[Date "2025.02.18"]
[Round "2.27"]
[White "Zvara, Petr"]
[Black "Kuna, Ralf-Michael"]
[Result "1-0"]
[Annotator "TA"]
[ECO "C71"]
[WhiteElo "2330"]
[BlackElo "2072"]
[PlyCount "75"]
[EventDate "2025.02.17"]
[EventType "team-tourn"]
[EventCountry "CZE"]
[SourceTitle "playchess.com"]
[Source "ChessBase"]
[SourceQuality "1"]
[TimeControl "40/5400+30:1800+30"]

{[%evp 14,75,12,14,33,17,5,0,9,17,12,-6,0,-17,-8,-23,-8,-42,-48,-100,-82,-76,-93,-83,-87,-107,-83,-81,-45,-52,-43,-45,-47,-37,-22,-40,-42,-37,0,0,9,11,26,0,0,0,28,35,20,14,29,25,41,41,130,126,213,213,509,505,646,651,788,786]} 1. e4 {[%emt 0:00:03]} e5 {[%emt 0:00:36]} 2. Nf3 {[%emt 0:00:08]} Nc6 {[%emt 0:00:37]} 3. Bb5 {[%emt 0:00:06]} a6 {[%emt 0:00:28]} 4. Ba4 {[%emt 0:00:07]} d6 {[%emt 0:03:39]} 5. d4 {[%emt 0:11:08]} exd4 {[%emt 0:14:45]} 6. Nxd4 {[%emt 0:06:17]} Bd7 {[%emt 0:00:24]} 7. Bxc6 {[%emt 0:00:05]} bxc6 {[%emt 0:00:26]} 8. O-O {[%emt 0:00:37]} c5 {[%emt 0:00:49] C73: Ruy Lopez: Deferred Steinitz: 5 Bxc6+.} 9. Ne2 {[%emt 0:05:02]} Nf6 {[%emt 0:04:18]} 10. Nbc3 {[%emt 0:00:05]} Be7 {[%emt 0:00:06] The position is equal.} 11. Ng3 {[%emt 0:02:55]} O-O {[%emt 0:00:52]} 12. f4 {[%emt 0:08:03]} Bc6 {[%emt 0:07:33]} 13. Qd3 $146 {[%emt 0:09:39]} ({Predecessor:} 13. b3 Qd7 14. Bb2 Rab8 15. Nd5 Bxd5 16. exd5 c4 17. Qf3 Rb5 18. Rad1 cxb3 19. axb3 {1-0 Weiss,M-Judd,M Vienna 1895 (15)}) 13... Nd7 {[%emt 0:03:16]} 14. b3 {[%emt 0:00:43] Not much happening anymore} Bf6 {[%emt 0:00:56]} 15. a4 {[%emt 0:03:21] Repels Bb5} Re8 {[%emt 0:06:42]} 16. Be3 {[%emt 0:16:14] Wards off Bd4} (16. Re1 $15) 16... Bxc3 $17 {[%emt 0:01:40]} 17. Qxc3 {[%emt 0:00:51]} Bxe4 {[%emt 0:00:07]} 18. Rae1 {[%emt 0:00:15]} f5 {[%emt 0:05:33]} 19. Bd2 {[%emt 0:01:51]} Qf6 {[%emt 0:02:32]} 20. Nxe4 {[%emt 0:00:26]} fxe4 {[%emt 0:00:09]} (20... Rxe4 {simplifies} 21. Rxe4 Qxc3 22. Bxc3 fxe4 23. Rd1 Rf8) 21. Qc4+ {[%emt 0:01:03]} Qe6 {[%emt 0:00:15] [#]} 22. Rxe4 {[%emt 0:00:46]} Qxc4 {[%emt 0:02:06]} 23. Rxc4 {[%emt 0:00:15]} Re2 {[%emt 0:01:38]} 24. Rf2 {[%emt 0:02:01]} Rae8 {[%emt 0:00:41]} 25. Kf1 {[%emt 0:05:09]} Rxf2+ {[%emt 0:01:12]} 26. Kxf2 $15 {[%emt 0:00:04][%mdl 4096] Endgame KRB-KRN} Nf6 {[%emt 0:00:26] [#] and ...d5 should not be overlooked} (26... d5 $5 27. Rc3 $8 Nf6 $11) 27. Kf3 $1 {[%emt 0:01:54]} Kf7 {[%emt 0:23:08]} 28. g4 {[%emt 0:05:44]} c6 {[%emt 0:04:32]} 29. Ba5 {[%emt 0:03:48]} Nd7 {[%emt 0:02:56]} 30. Re4 {[%emt 0:02:12]} Rxe4 {[%emt 0:00:59]} 31. Kxe4 $14 {[%emt 0:00:05] KB-KN} Nf6+ {[%emt 0:00:08]} 32. Kf3 $1 {[%emt 0:00:48]} g6 {[%emt 0:03:11]} 33. f5 {[%emt 0:07:53]} d5 {[%emt 0:04:49]} (33... gxf5 $14 34. gxf5 Nd5) 34. Kf4 {[%emt 0:00:14]} Ne4 {[%emt 0:03:30]} (34... c4 $16) 35. Ke5 $18 {[%emt 0:02:32]} g5 $2 {[%emt 0:01:12]} (35... gxf5 36. gxf5 h5) 36. h3 {[%emt 0:02:36] White is clearly winning.} h6 {[%emt 0:00:28]} 37. Bb6 {[%emt 0:02:20]} Ke7 {[%emt 0:00:25]} 38. c4 {[%emt 0:00:32] Weighted Error Value: White=0.10 (very precise) /Black=0.34  Mistake:       	White=1     	Black=3      Inaccurate:     	White=2     	Black=3      OK:         	White=9     	Black=10     Best:        	White=2     	Black=1      Strong:       	White=2     	---} 1-0

[Event "FIDE WSTC Open 50 2025"]
[Site "Prague"]
[Date "2025.02.18"]
[Round "2.28"]
[White "Haentsch, Ralf"]
[Black "Konopka, Michal"]
[Result "1/2-1/2"]
[Annotator "TA"]
[ECO "B09"]
[WhiteElo "2087"]
[BlackElo "2326"]
[PlyCount "112"]
[EventDate "2025.02.17"]
[EventType "team-tourn"]
[EventCountry "CZE"]
[SourceTitle "playchess.com"]
[Source "ChessBase"]
[SourceQuality "1"]
[TimeControl "40/5400+30:1800+30"]

{[%evp 13,112,9,20,-89,21,22,12,-16,-10,0,65,75,33,14,89,79,83,31,40,-42,-46,-48,-42,-30,104,106,105,59,62,53,78,75,75,57,79,79,81,72,73,37,40,38,56,13,23,13,24,14,15,0,0,0,0,-27,0,0,0,0,0,0,0,-11,0,0,0,0,0,0,0,0,0,0,0,0,0,0,0,-13,-24,-20,-14,-18,-18,-31,-31,-31,-7,-13,0,-31,0,-7,0,0,0,0,0,0,0,0,0]} 1. e4 {[%emt 0:00:03]} d6 {[%emt 0:00:45]} 2. d4 {[%emt 0:00:16]} Nf6 {[%emt 0:00:20]} 3. Nc3 {[%emt 0:00:02]} g6 {[%emt 0:00:11]} 4. f4 {[%emt 0:00:53]} Bg7 {[%emt 0:03:10]} 5. Nf3 {[%emt 0:00:22]} O-O {[%emt 0:01:22]} 6. Be2 {[%emt 0:01:55]} c5 {[%emt 0:00:29]} 7. dxc5 {[%emt 0:01:40]} Qa5 $1 {[%emt 0:00:56]} 8. Qd3 {[%emt 0:17:48] B09: Pirc Defence: Austrian Attack.} (8. cxd6 Nxe4 9. dxe7 Re8) (8. Nd2 $11) 8... Qxc5 {[%emt 0:12:02]} (8... Nxe4 $1 $17 {...Bf5 would now be deadly.} 9. Qxe4 Bxc3+ (9... dxc5 $2 10. Bd2 $18) 10. Kf2 Qxc5+ 11. Be3 Qb4 12. Qxe7 Bxb2 (12... Qxb2 13. Qxd6 Re8 14. Rhb1 $11)) 9. Be3 $11 {[%emt 0:01:48]} Qa5 {[%emt 0:01:31]} 10. O-O-O {[%emt 0:06:06]} Nc6 $146 {[%emt 0:04:50][%cal Bb8c6,Bc6a5,Ba5c4][%mdl 32]} (10... Ng4 11. Nd5 Nc6 12. a3 Nxe3 13. Qxe3 Be6 14. h4 Rac8 15. h5 Qc5 16. Qd3 Bxd5 17. exd5 {1-0 Brereton,J (1310)-Gregg,T (1367) Kalamazoo op1 2003 (3.2)}) 11. Qb5 {[%emt 0:08:19] Against Nb4} Be6 {[%emt 0:19:51]} ({Black should try} 11... Qxb5 $11 12. Bxb5 Bg4) 12. Qxa5 $14 {[%emt 0:10:58]} (12. Qxb7 $2 Nxe4 13. Nd4 Nxc3 14. bxc3 Rab8 (14... Qxc3 $2 15. Rd3 $19) 15. Qxc6 Rfc8 $19 (15... Qxa2 16. Kd2 $16) (15... Bxa2 $2 16. Bd3 $19)) 12... Nxa5 {[%emt 0:00:07]} 13. Nd4 {[%emt 0:08:26]} Bc4 {[%emt 0:03:56] [#]} (13... Nc4 $11 {remains equal.} 14. Bg1 Rfc8) 14. Bf3 $1 $16 {[%emt 0:02:42]} Ba6 {[%emt 0:17:20]} 15. Ndb5 {[%emt 0:06:52]} (15. e5 $16 Ne8 16. exd6 Nxd6 17. Bf2) 15... Nc4 {[%emt 0:01:13]} 16. Bd4 {[%emt 0:00:41]} (16. Bxa7 Nh5 17. b3 Bxb5 18. Nxb5 Na3 19. Nxa3 Rxa7 $19) ({White should try} 16. Bg1 $14) 16... Bh6 $15 {[%emt 0:06:25]} 17. Nc7 {[%emt 0:07:15]} ({Much worse is} 17. Nxa7 Bxf4+ 18. Kb1 e5 $17) 17... Bxf4+ {[%emt 0:12:50]} 18. Kb1 {[%emt 0:00:03] [#]} Be5 {[%emt 0:00:18]} 19. Nxa8 $16 {[%emt 0:04:47]} Rxa8 {[%emt 0:00:07]} 20. Bxe5 {[%emt 0:02:18]} (20. Be2 $16) 20... Nxe5 $14 {[%emt 0:00:07]} 21. Rhe1 {[%emt 0:00:51]} Bc4 {[%emt 0:01:22][%cal Ba6c4,Bc4e6,Be6d7][%mdl 32]} 22. b3 {[%emt 0:03:00]} Be6 {[%emt 0:01:29]} 23. Nb5 {[%emt 0:01:35]} Bd7 {[%emt 0:01:36]} 24. Nc7 {[%emt 0:00:50]} Rc8 {[%emt 0:00:31]} 25. Nd5 {[%emt 0:00:07]} Nxd5 {[%emt 0:00:23]} 26. Rxd5 {[%emt 0:00:14]} Kg7 {[%emt 0:02:27]} 27. Kb2 {[%emt 0:02:22]} g5 {[%emt 0:00:15]} 28. c4 {[%emt 0:02:07]} Be6 {[%emt 0:02:14]} 29. Rd2 {[%emt 0:01:56]} Kg6 {[%emt 0:01:14]} 30. Bd1 {[%emt 0:01:57]} h5 {[%emt 0:00:38]} 31. Bc2 {[%emt 0:00:31]} g4 {[%emt 0:01:01]} 32. Rf2 {[%emt 0:02:15]} f6 {[%emt 0:00:24]} 33. Re3 {[%emt 0:01:08] [#]} Bxc4 $1 {[%emt 0:01:15]} 34. Rc3 {[%emt 0:01:09]} Be6 {[%emt 0:00:08]} 35. Rxc8 {[%emt 0:00:07]} Bxc8 $11 {[%emt 0:00:05][%mdl 4096] Endgame KRB-KBN} 36. Kc3 {[%emt 0:00:53]} h4 {[%emt 0:00:47]} 37. g3 {[%emt 0:01:36]} Kg5 {[%emt 0:01:39]} 38. Kd4 {[%emt 0:00:53]} Be6 {[%emt 0:01:17]} 39. Ke3 {[%emt 0:00:46]} Bd7 {[%emt 0:00:31]} 40. Kd4 {[%emt 0:00:44]} Be6 {[%emt 0:00:40]} 41. Ke3 {[%emt 0:30:52]} h3 {[%emt 0:06:19]} 42. Bd1 Bd7 {[%emt 0:00:35]} 43. Rc2 {[%emt 0:00:00]} Bc6 {[%emt 0:04:01]} 44. Rf2 {[%emt 0:00:00]} e6 {[%emt 0:01:49]} 45. Rd2 {[%emt 0:00:00]} d5 {[%emt 0:00:41]} 46. exd5 {[%emt 0:00:00]} Bxd5 {[%emt 0:00:13]} 47. Rc2 {[%emt 0:00:00]} Nc6 {[%emt 0:05:42]} 48. Rd2 {[%emt 0:00:00]} f5 {[%emt 0:00:43]} 49. Be2 {[%emt 0:00:00]} Ne5 {[%emt 0:01:54]} 50. Rc2 {[%emt 0:00:00]} Bc6 {[%emt 0:07:07]} 51. Rd2 {[%emt 0:00:00]} Ng6 {[%emt 0:00:27]} 52. Bc4 {[%emt 0:00:00] The position is equal.} f4+ {[%emt 0:03:38]} 53. gxf4+ {[%emt 0:00:00]} Nxf4 {[%emt 0:00:08]} 54. Kf2 {[%emt 0:00:01]} e5 {[%emt 0:01:05]} 55. Rd8 {[%emt 0:01:34]} Nh5 {[%emt 0:00:56][%cal Og4g3]} 56. Bd5 {[%emt 0:01:26]} Nf6 {[%emt 0:00:42] Weighted Error Value: White=0.14 (very precise) /Black=0.18 (very precise)   Mistake:       	White=3     	Black=4      Inaccurate:     	White=5     	Black=2      OK:         	White=20    	Black=14     Best:        	White=3     	---        Strong:       	White=1     	---} 1/2-1/2

[Event "FIDE WSTC Open 50 2025"]
[Site "Prague"]
[Date "2025.02.18"]
[Round "2.29"]
[White "Muir, Andrew J"]
[Black "Bischoff, Klaus"]
[Result "1/2-1/2"]
[Annotator "TA"]
[ECO "A58"]
[WhiteElo "2166"]
[BlackElo "2432"]
[PlyCount "45"]
[EventDate "2025.02.17"]
[EventType "team-tourn"]
[EventCountry "CZE"]
[SourceTitle "playchess.com"]
[Source "ChessBase"]
[SourceQuality "1"]
[TimeControl "40/5400+30:1800+30"]

{[%evp 23,45,35,26,35,40,26,49,30,41,8,10,0,7,0,0,-36,-34,-35,-37,-35,-14,-22,-18,-14]} 1. d4 {[%emt 0:00:09]} Nf6 {[%emt 0:00:15]} 2. c4 {[%emt 0:00:13][%cal Bc2c4,Bc4b5,Bb5a6][%mdl 32]} c5 {[%emt 0:00:39]} 3. d5 {[%emt 0:00:16]} b5 {[%emt 0:00:12]} 4. cxb5 {[%emt 0:00:25]} a6 {[%emt 0:00:07]} 5. bxa6 {[%emt 0:00:23]} g6 {[%emt 0:00:21]} 6. Nc3 {[%emt 0:00:19]} Bg7 {[%emt 0:00:10]} 7. e4 {[%emt 0:00:40]} O-O {[%emt 0:00:16]} 8. Nf3 {[%emt 0:00:23]} Qa5 {[%emt 0:00:29]} 9. Bd2 {[%emt 0:01:14]} Bxa6 {[%emt 0:00:10]} 10. Be2 {[%emt 0:00:28]} d6 {[%emt 0:05:17]} 11. O-O {[%emt 0:00:31]} Qb4 {[%emt 0:03:29]} 12. Bxa6 {[%emt 0:14:17]} Nxa6 {[%emt 0:00:23]} 13. Qc2 {[%emt 0:02:57] A57: Benko/Volga Gambit.} Rfb8 {[%emt 0:01:09]} 14. Rab1 {[%emt 0:02:17]} Qc4 {[%emt 0:04:36]} 15. a3 {[%emt 0:13:04] [#] Strongly threatening b3. White is slightly better. Prevents Nb4.} Qb3 {[%emt 0:15:02]} 16. Qxb3 {[%emt 0:09:43]} Rxb3 {[%emt 0:00:32]} 17. e5 $146 {[%emt 0:00:05]} (17. Be3 Rab8 18. e5 Ng4 19. Na4 Nxe5 20. Nd2 R3b7 21. b3 Nc7 22. Nc3 Ng4 23. Nd1 Nxd5 24. h3 Ngxe3 25. Nxe3 Nxe3 26. fxe3 {0-1 Anishka,V (1712)-Friedland,M (2200) Titled Tuesday intern op 14th Nov Early blitz 2023 (8)}) 17... dxe5 {[%emt 0:05:05]} 18. Nxe5 {[%emt 0:00:08]} Nc7 {[%emt 0:03:35]} 19. f4 {[%emt 0:10:45]} Ncxd5 {[%emt 0:02:29]} 20. Nxd5 {[%emt 0:06:07]} Nxd5 {[%emt 0:01:41]} 21. Rfc1 {[%emt 0:00:05]} Rc8 {[%emt 0:08:53]} 22. Rc2 {[%emt 0:04:09]} f6 {[%emt 0:03:47]} 23. Nc4 {[%emt 0:00:50] Weighted Error Value: White=0.10 (very precise) /Black=0.03 (flawless)   Inaccurate:     	White=2     	---        OK:         	White=4     	Black=5      Best:        	White=1     	Black=1} 1/2-1/2

[Event "FIDE WSTC Open 50 2025"]
[Site "Prague"]
[Date "2025.02.18"]
[Round "2.30"]
[White "Seul, Georg"]
[Black "Farrell, Neil"]
[Result "0-1"]
[Annotator "TA"]
[ECO "C02"]
[WhiteElo "2329"]
[BlackElo "2116"]
[PlyCount "71"]
[EventDate "2025.02.17"]
[EventType "team-tourn"]
[EventCountry "CZE"]
[SourceTitle "playchess.com"]
[Source "ChessBase"]
[SourceQuality "1"]
[TimeControl "40/5400+30:1800+30"]

{[%evp 12,71,25,20,23,0,0,6,0,13,25,35,89,104,78,80,161,170,208,223,228,220,296,285,283,289,284,256,252,70,138,151,145,147,152,74,97,64,47,0,0,0,0,0,0,-84,-68,-198,-24,-56,-8,-107,-114,-91,-99,-100,-55,-107,-68,-72,-72,-166]} 1. e4 {[%emt 0:00:03]} e6 2. d4 {[%emt 0:00:07]} d5 {[%emt 0:00:22]} 3. e5 {[%emt 0:00:06]} c5 {[%emt 0:00:16]} 4. c3 {[%emt 0:00:08]} Nc6 {[%emt 0:00:17]} 5. Nf3 {[%emt 0:00:07]} Qb6 {[%emt 0:00:19]} 6. a3 {[%emt 0:00:12]} Nh6 {[%emt 0:00:41]} 7. Bd3 {[%emt 0:00:17] is recently more successful than 7.b4.} cxd4 {[%emt 0:01:20] C02: French: Advance Variation.} 8. O-O {[%emt 0:00:12]} Bd7 {[%emt 0:03:45]} 9. b4 {[%emt 0:00:29]} Rc8 {[%emt 0:02:06][%cal Ba8c8,Bc8c3,Bc3a3][%mdl 32] The position is equal.} 10. Ra2 {[%emt 0:02:25][%cal Ba1a2,Ba2a7,Ba7b7][%mdl 32]} dxc3 {[%emt 0:12:31]} 11. Nxc3 {[%emt 0:01:14]} Nxb4 {[%emt 0:08:43]} 12. axb4 $16 {[%emt 0:06:41] [#] White sacrificed a pawn. A sharp opening} (12. Na4 $2 Rxc1 (12... Nxa2 13. Nxb6 Rxc1 14. Qb3 $14) 13. axb4 Rxd1 $19) 12... Rxc3 {[%emt 0:00:33]} 13. Be3 {[%emt 0:00:54]} Qd8 $146 {[%emt 0:25:53]} (13... Qxb4 $16 14. Rxa7 Ra3) ({Predecessor:} 13... Qxb4 14. Qe2 Rxd3 15. Qxd3 Qb5 16. Qb1 a5 17. Rb2 Bb4 18. Bd2 Bc6 19. Nd4 Qc5 20. Nxc6 bxc6 {1-0 Ganguly,S (2578)-Bukreev,S (2384) Qatar Masters op-A 2024 (7)}) 14. Rxa7 $18 {[%emt 0:07:05]} Bxb4 {[%emt 0:04:09]} 15. Rxb7 {[%emt 0:07:29]} Be7 {[%emt 0:05:06]} 16. Qd2 {[%emt 0:28:21][%csl LRc3,LRh6]} Ra3 {[%emt 0:09:04]} 17. Rc1 {[%emt 0:08:50] Inhibits Qc8.} O-O {[%emt 0:02:21]} 18. Bxh6 {[%emt 0:09:06]} gxh6 {[%emt 0:00:41]} 19. Bb1 {[%emt 0:02:29]} f5 {[%emt 0:10:39]} (19... Bg5 $2 20. Qc2 f5 21. exf6 $18) 20. Rcc7 $2 {[%emt 0:02:42]} (20. Qxh6 $6 Ra1 21. g4 Rf7 22. gxf5 Bf8 $18) (20. exf6 $18 Bxf6 21. Qe2 (21. Qxh6 Rf7 $18)) 20... Bc8 {[%emt 0:03:30]} (20... Rb3 $1 $14 21. Rxd7 (21. Rxb3 Qxc7 22. g3 Qc4 $11) 21... Rxb1+ 22. Rxb1 Qxd7) 21. Rxe7 $16 {[%emt 0:01:06] Intending Rg7+ and mate. White attacks} Bxb7 {[%emt 0:00:06]} 22. Rxb7 {[%emt 0:00:15] White plays on the queen side and is better} Qc8 {[%emt 0:03:11]} 23. Rb6 {[%emt 0:10:49]} ({White should try} 23. Rb2) 23... Qc5 {[%emt 0:01:42]} 24. Qb2 {[%emt 0:07:21][%cal Of3d4]} (24. Rxe6 Ra1 25. h4 Rxb1+ 26. Kh2 Qc1 27. Qxc1 Rxc1 $11) 24... Rc8 $1 {[%emt 0:01:07] ( -> ...Qc1+)} 25. h4 {[%emt 0:01:25]} (25. Rxe6 $2 Qc1+ 26. Qxc1 Rxc1+) (25. h3 $14 Qc1+ 26. Qxc1 Rxc1+ 27. Kh2) 25... Qc1+ $11 {[%emt 0:02:31]} 26. Qxc1 {[%emt 0:00:16] Counterplay Black} Rxc1+ {[%emt 0:00:03]} 27. Kh2 {[%emt 0:00:02][%cal Of3d4] Black must now prevent Nd4!.} Ra1 {[%emt 0:00:20]} 28. Rxe6 {[%emt 0:03:09]} (28. Rb8+ $11 Kg7 29. Rb7+ Kg8 30. Rb8+) 28... Raxb1 {[%emt 0:00:23]} 29. Rxh6 {[%emt 0:00:24][%mdl 4096] Endgame [#] KRR-KRN} (29. Rf6 $15) 29... Rb2 $2 {[%emt 0:01:20]} (29... Rh1+ $1 $19 30. Kg3 Rb4) 30. Rd6 {[%emt 0:00:47]} Rcc2 {[%emt 0:01:05]} (30... Rxf2 $15 31. e6 Kg7) 31. Kg3 {[%emt 0:00:30]} (31. e6 $11 {remains equal.} Kg7 (31... Rxf2 32. Rd8+ Kg7 33. e7 $16) 32. Rd7+ Kf6 33. Nd4 Rxf2 34. Rf7+ Kg6 (34... Ke5 35. e7 $11) 35. Kh3) 31... Rxf2 $17 {[%emt 0:00:22]} 32. Kf4 {[%emt 0:00:19]} Rxg2 {[%emt 0:00:17]} 33. Rxd5 {[%emt 0:00:48][%cal Oe5e6]} Rbf2 {[%emt 0:01:40] Strongly threatening ...Rg4+.} 34. Rd3 {[%emt 0:00:26]} (34. e6 $1 $15 Rg4+ 35. Ke3 Rxf3+ 36. Kxf3) 34... Rg4+ {[%emt 0:00:21]} 35. Kxf5 {[%emt 0:00:05]} Rxh4 {[%emt 0:00:23] Black is more active.} 36. Kg5 {[%emt 0:00:00] White really could win this.   Weighted Error Value: White=0.38/Black=0.30  Missed win:     	White=1     	Black=1      Mistake:       	White=7     	Black=4      Inaccurate:     	White=2     	Black=2      OK:         	White=7     	Black=4      Best:        	White=6     	Black=10     Strong:       	---       	Black=1} (36. e6 $17 {keeps fighting.}) 0-1

[Event "FIDE WSTC Open 50 2025"]
[Site "Prague"]
[Date "2025.02.18"]
[Round "2.31"]
[White "Robertson, Ian C."]
[Black "Wolf, Volker"]
[Result "0-1"]
[Annotator "TA"]
[ECO "A46"]
[WhiteElo "2064"]
[BlackElo "2206"]
[PlyCount "96"]
[EventDate "2025.02.17"]
[EventType "team-tourn"]
[EventCountry "CZE"]
[SourceTitle "playchess.com"]
[Source "ChessBase"]
[SourceQuality "1"]
[TimeControl "40/5400+30:1800+30"]

{[%evp 26,96,93,86,85,82,90,88,79,59,64,41,55,53,116,54,52,34,19,26,12,0,85,71,50,-24,-24,-29,-21,-70,-16,-97,-97,-140,-143,-206,-189,-218,-222,-216,-191,-242,-225,-346,-280,-298,-278,-356,-359,-332,-331,-308,0,-280,-263,-343,-282,-296,-295,-321,-296,-284,-324,-269,-300,-410,-397,-876,-870,-2180,-2165,-2838,-2250]} 1. d4 {[%emt 0:00:05]} Nf6 {[%emt 0:00:32]} 2. Nf3 {[%emt 0:00:25]} e6 {[%emt 0:00:34]} 3. e3 {[%emt 0:01:00]} b6 {[%emt 0:02:24]} 4. Bd3 {[%emt 0:02:02]} Bb7 {[%emt 0:00:35]} 5. O-O {[%emt 0:00:59]} c5 {[%emt 0:00:38]} 6. c4 {[%emt 0:04:12]} Be7 {[%emt 0:04:32]} 7. Nc3 {[%emt 0:02:32]} O-O {[%emt 0:07:33]} 8. d5 {[%emt 0:07:44]} exd5 {[%emt 0:02:17]} 9. cxd5 {[%emt 0:01:31]} d6 {[%emt 0:00:23]} 10. e4 {[%emt 0:05:39]} Nbd7 {[%emt 0:05:35]} 11. h3 {[%emt 0:07:57]} a6 {[%emt 0:01:14]} 12. a4 {[%emt 0:00:22]} Re8 {[%emt 0:00:58]} 13. Bf4 {[%emt 0:02:24]} Bf8 {[%emt 0:02:55]} 14. Re1 {[%emt 0:01:37]} Qc7 {[%emt 0:04:07] E14: Queen's Indian: Classical Variation (4 e3).} 15. Bc4 {[%emt 0:05:30]} g6 {[%emt 0:05:11]} 16. Qd2 {[%emt 0:06:19]} Bg7 {[%emt 0:05:30] White is better.} 17. Re2 {[%emt 0:14:12]} Nh5 {[%emt 0:11:05]} 18. Bh2 {[%emt 0:03:50]} Ne5 {[%emt 0:03:09]} 19. Nxe5 {[%emt 0:07:35]} Bxe5 {[%emt 0:00:42]} (19... dxe5 $14 20. d6 Qd7) 20. Rae1 $146 {[%emt 0:08:13]} (20. g4 $16 {Hoping for Bxe5.} Bxh2+ 21. Kxh2) (20. Bxe5 Rxe5 21. f4 Ree8 22. Rae1 Qe7 23. g4 Ng7 24. e5 Qh4 25. Re3 g5 26. fxg5 Rxe5 27. Rxe5 dxe5 {1-0 Bente,B (2212)-Korba,R (2189) Hamburg CupT final 2015 (4.2)}) 20... Qe7 {[%emt 0:07:40]} 21. f4 {[%emt 0:03:41]} Bd4+ {[%emt 0:00:23]} 22. Kh1 {[%emt 0:00:09]} Qh4 {[%emt 0:01:23][%cal Og6g5]} 23. Rf1 {[%emt 0:06:04]} Ng3+ {[%emt 0:01:41]} (23... Re7 $1 $11) 24. Bxg3 $16 {[%emt 0:00:09]} Qxg3 {[%emt 0:00:03]} 25. Qe1 {[%emt 0:05:32]} ({White should play} 25. e5 $1 $14 dxe5 26. Ne4) 25... Qxe1 $11 {[%emt 0:00:18]} 26. Rfxe1 {[%emt 0:00:02]} f6 {[%emt 0:00:47]} 27. Kh2 {[%emt 0:01:28]} (27. Nb1 $11 {was preferable.}) 27... Kg7 {[%emt 0:00:22]} ({Black should play} 27... Bc8 $15) 28. Kg3 {[%emt 0:00:08]} (28. Nb1 $11 {keeps the balance.}) 28... Bc8 $17 {[%emt 0:01:31]} 29. Nb1 {[%emt 0:02:07]} Bd7 {[%emt 0:00:51][%cal Ob6b5] Black is more active.} 30. b3 {[%emt 0:00:49]} (30. Nc3 $17) 30... b5 $19 {[%emt 0:02:15] White is weak on the dark squares} 31. axb5 {[%emt 0:00:10]} axb5 {[%emt 0:00:01]} 32. Bd3 {[%emt 0:00:09]} g5 {[%emt 0:06:28]} 33. Rc1 {[%emt 0:01:38]} (33. fxg5 $142 Be5+ (33... fxg5 $2 34. Nd2 $19) 34. Kf2) 33... Ra1 {[%emt 0:00:36]} (33... gxf4+ 34. Kxf4 Be5+ 35. Kf3 $19) 34. fxg5 {[%emt 0:00:37]} (34. Rce1 {might work better.}) 34... fxg5 {[%emt 0:00:02]} 35. Kh2 {[%emt 0:00:35]} Rf8 {[%emt 0:01:32]} 36. Rce1 {[%emt 0:00:19]} Be5+ {[%emt 0:01:57] This pair of bishops is nice.} 37. Kg1 {[%emt 0:00:07]} Bg3 {[%emt 0:01:06]} 38. Rd1 {[%emt 0:00:54]} Be5 $2 {[%emt 0:01:02] [#] Inhibits Nc3.} (38... g4 $19 {...Be5 is the strong threat.} 39. Rc2 Be5 (39... gxh3 $2 40. Nc3 $19) 40. hxg4 Bxg4) 39. Ree1 $2 {[%emt 0:00:32][%mdl 8192]} (39. Rde1 $1 $11 {and White has nothing to worry.} g4 40. Nd2) 39... Ra2 {[%emt 0:04:48]} 40. Re2 {[%emt 0:00:33]} Bd4+ {[%emt 0:00:55]} 41. Kh1 {[%emt 0:04:24]} Ra1 {[%emt 0:02:58]} 42. Ree1 {[%emt 0:06:52]} h5 {[%emt 0:14:55]} 43. Nd2 {[%emt 0:11:42]} Rxd1 {[%emt 0:02:09]} 44. Rxd1 {[%emt 0:00:01]} g4 {[%emt 0:00:20] Inhibits Nf3.} 45. Nf1 {[%emt 0:06:09]} gxh3 {[%emt 0:13:38]} 46. Ng3 $2 {[%emt 0:02:45] [#]} (46. Rd2) 46... hxg2+ {[%emt 0:01:40] Black is clearly winning.} 47. Kxg2 {[%emt 0:00:16]} Rf2+ {[%emt 0:00:56]} 48. Kh1 {[%emt 0:00:26]} Bg4 {[%emt 0:00:33] Weighted Error Value: White=0.70/Black=0.20 (precise)   Loses game:     	White=1     	---        Missed win:     	---       	Black=1      Mistake:       	White=8     	Black=3      Inaccurate:     	White=4     	---        OK:         	White=10    	Black=14     Best:        	White=1     	Black=5} 0-1